bitfinex/quotes_SOLUSD_20250318
["timestamp","ask_amount","ask_price","bid_price","bid_amount"]
[1742301368330,40.97932887,123.58,123.54,28.3938]
[1742301371015,40.97932887,123.55,123.54,8.1575]
[1742301371747,40.97932887,123.56,123.54,8.1575]
[1742301372047,60.97932887,123.58,123.54,28.3938]
[1742301372223,40.97932887,123.57,123.54,28.3938]
[1742301372410,40.97932887,123.57,123.54,20.2993]
[1742301373734,40.97932887,123.56,123.54,20.2993]
[1742301374117,20.0,123.58,123.54,0.063]
[1742301374118,40.97932887,123.55,123.54,0.063]
[1742301374345,48.17932887,123.55,123.54,0.063]
[1742301374931,56.27312887,123.55,123.54,0.063]
[1742301375292,48.17932887,123.55,123.54,0.063]
[1742301375813,89.15865774,123.55,123.54,0.063]
[1742301376643,48.17932887,123.55,123.54,0.063]
[1742301377031,40.97932887,123.57,123.54,0.063]
[1742301378739,40.97932887,123.56,123.54,0.063]
[1742301380032,40.97932887,123.55,123.54,0.063]
[1742301381132,40.97932887,123.56,123.54,0.063]
[1742301381916,60.97932887,123.57,123.54,0.063]
[1742301382212,40.97932887,123.57,123.54,0.063]
[1742301384558,40.97932887,123.56,123.54,0.063]
[1742301384834,40.97932887,123.55,123.54,0.063]
[1742301389650,100.89262974,123.55,123.54,0.063]
[1742301390846,109.12859131,123.55,123.54,0.063]
[1742301392722,101.03479131,123.55,123.54,0.063]
[1742301393150,60.05546244,123.55,123.54,0.063]
[1742301393328,40.97932887,123.55,123.54,0.063]
[1742301394147,59.91330087,123.55,123.54,0.063]
[1742301394838,59.62897773,123.55,123.54,0.063]
[1742301395144,59.91330087,123.55,123.54,0.063]
[1742301395958,40.97932887,123.55,123.54,0.063]
[1742301396126,48.17932887,123.55,123.54,0.063]
[1742301399243,32.83363074,123.55,123.54,0.063]
[1742301400331,77.54339505,123.55,123.54,0.063]
[1742301400531,77.54339505,123.55,123.52,0.063]
[1742301400532,38.933972,123.53,123.52,0.063]
[1742301400740,64.56760274,123.53,123.52,0.063]
[1742301401836,20.0,123.5,123.49,0.063]
[1742301402041,52.83363074,123.5,123.49,0.063]
[1742301403162,20.0,123.5,123.49,0.063]
[1742301403540,45.63363074,123.5,123.49,0.063]
[1742301403742,20.0,123.5,123.49,0.063]
[1742301403937,25.63363074,123.53,123.49,0.063]
[1742301404952,25.63363074,123.53,123.49,28.4053]
[1742301405352,25.63363074,123.52,123.49,28.4053]
[1742301405664,25.63363074,123.51,123.49,28.4053]
[1742301406257,25.63363074,123.52,123.49,28.4053]
[1742301406759,25.63363074,123.51,123.49,28.4053]
[1742301407852,25.63363074,123.52,123.49,28.4053]
[1742301409253,25.63363074,123.53,123.49,68.8944]
[1742301409765,25.63363074,123.52,123.49,68.8944]
[1742301410844,45.63363074,123.51,123.49,28.4053]
[1742301411365,25.63363074,123.51,123.49,28.4053]
[1742301414678,25.63363074,123.52,123.49,28.4053]
[1742301415480,25.66363074,123.52,123.49,28.4053]
[1742301416769,25.63363074,123.51,123.49,28.4053]
[1742301417747,0.03,123.52,123.49,0.063]
[1742301417748,25.63363074,123.5,123.49,0.063]
[1742301417948,32.81363074,123.5,123.49,0.063]
[1742301420552,0.14216157,123.49,123.48,0.063]
[1742301420760,19.07613357,123.48,123.47,0.063]
[1742301420973,20.0,123.45,123.43,25.31004692]
[1742301421149,52.81363074,123.45,123.43,25.31004692]
[1742301421965,52.81363074,123.45,123.42,8.1651]
[1742301422275,25.63363074,123.43,123.42,8.1651]
[1742301423777,25.63363074,123.43,123.42,0.063]
[1742301425352,70.20123348,123.43,123.42,0.063]
[1742301425848,70.34339505,123.43,123.42,0.063]
[1742301426653,44.56760274,123.43,123.42,0.063]
[1742301426857,25.63363074,123.43,123.42,0.063]
[1742301429068,70.34339505,123.43,123.42,0.063]
[1742301429566,25.63363074,123.43,123.42,0.063]
[1742301438576,25.63363074,123.44,123.42,0.063]
[1742301439786,25.63363074,123.46,123.42,0.063]
[1742301440078,25.63363074,123.46,123.42,28.4214]
[1742301440673,25.63363074,123.45,123.42,28.4214]
[1742301441178,25.63363074,123.43,123.42,8.1654]
[1742301444085,25.63363074,123.43,123.42,0.063]
[1742301444596,25.63363074,123.45,123.42,0.063]
[1742301446388,45.63363074,123.44,123.42,0.063]
[1742301450085,20.0,123.44,123.42,0.063]
[1742301451114,25.63363074,123.45,123.42,0.063]
[1742301452076,45.63363074,123.44,123.42,0.063]
[1742301452902,45.63363074,123.43,123.42,0.063]
[1742301453477,25.63363074,123.44,123.42,0.063]
[1742301453674,25.63363074,123.45,123.42,0.063]
[1742301454183,25.63363074,123.46,123.42,0.063]
[1742301456895,45.63363074,123.45,123.42,0.063]
[1742301457902,25.63363074,123.45,123.42,0.063]
[1742301458480,25.63363074,123.44,123.42,0.063]
[1742301460579,25.63363074,123.43,123.42,0.063]
[1742301466888,32.75363074,123.44,123.42,0.063]
[1742301467290,25.63363074,123.43,123.42,0.063]
[1742301468704,32.75363074,123.44,123.42,0.063]
[1742301470782,25.63363074,123.43,123.42,0.063]
[1742301473206,7.12,123.44,123.42,0.063]
[1742301473391,25.63363074,123.43,123.42,0.063]
[1742301473896,20.0,123.43,123.42,0.063]
[1742301474099,25.63363074,123.44,123.42,0.063]
[1742301474283,45.63363074,123.43,123.42,0.063]
[1742301475010,25.63363074,123.44,123.42,0.063]
[1742301476005,25.63363074,123.43,123.42,0.063]
[1742301476214,45.63363074,123.43,123.42,0.063]
[1742301477098,36.42879624,123.43,123.42,0.063]
[1742301477613,20.0,123.43,123.42,0.063]
[1742301477914,16.42879624,123.44,123.42,0.063]
[1742301480008,36.42879624,123.43,123.42,0.063]
[1742301483011,79.89326448,123.43,123.42,0.063]
[1742301483191,129.1796532,123.43,123.42,0.063]
[1742301483393,55.36276824,123.43,123.42,0.063]
[1742301483915,36.42879624,123.43,123.42,0.063]
[1742301487111,44.53049624,123.43,123.42,0.063]
[1742301488492,36.42879624,123.43,123.42,0.063]
[1742301488697,43.48879624,123.43,123.42,0.063]
[1742301490911,51.59049624,123.43,123.42,0.063]
[1742301491105,136.2396532,123.43,123.42,0.063]
[1742301492021,43.48879624,123.43,123.42,0.063]
[1742301495606,36.42879624,123.43,123.42,0.063]
[1742301495806,16.42879624,123.44,123.42,0.063]
[1742301496002,16.42879624,123.44,123.42,8.1654]
[1742301497309,36.42879624,123.43,123.42,8.1654]
[1742301497926,16.42879624,123.44,123.42,8.1654]
[1742301499632,214.42,123.45,123.42,28.4214]
[1742301499934,20.0,123.43,123.42,28.4214]
[1742301501534,36.42879624,123.43,123.42,28.4214]
[1742301502334,20.0,123.43,123.42,28.4214]
[1742301503122,16.42879624,123.46,123.42,35.0631]
[1742301503718,16.45879624,123.47,123.42,51.49189624]
[1742301503933,0.03,123.47,123.42,51.49189624]
[1742301504132,16.45879624,123.47,123.43,0.14216157]
[1742301504332,0.03,123.47,123.43,16.57095781]
[1742301504516,0.03,123.47,123.44,16.42879624]
[1742301505042,16.45879624,123.5,123.46,1.631]
[1742301505742,20.0,123.48,123.47,28.3469]
[1742301506117,36.42879624,123.48,123.47,8.0991]
[1742301506539,36.42879624,123.48,123.45,20.2504]
[1742301506540,36.42879624,123.48,123.45,8.1004]
[1742301506841,16.42879624,123.46,123.45,8.1004]
[1742301507722,16.42879624,123.46,123.44,8.1011]
[1742301507929,16.42879624,123.47,123.44,8.1011]
[1742301508131,16.42879624,123.47,123.44,28.3538]
[1742301509021,43.48879624,123.48,123.44,28.3538]
[1742301510851,20.0,123.46,123.44,44.78259624]
[1742301511141,0.03,123.5,123.45,16.57095781]
[1742301511339,16.42879624,123.49,123.44,220.38809624]
[1742301511635,16.42879624,123.48,123.44,220.38809624]
[1742301512842,16.42879624,123.49,123.44,220.38809624]
[1742301513123,25.64608232,123.49,123.44,229.60538232]
[1742301514235,25.64608232,123.49,123.45,0.14216157]
[1742301514646,0.03,123.5,123.45,0.14216157]
[1742301514647,25.67608232,123.5,123.45,25.78824389]
[1742301514844,0.03,123.5,123.47,28.3469]
[1742301515024,0.03,123.5,123.48,1.575]
[1742301515429,0.03,123.5,123.48,27.22108232]
[1742301515651,0.03,123.5,123.49,25.64608232]
[1742301516349,0.03,123.5,123.48,27.22108232]
[1742301516947,0.03,123.5,123.49,8.0978]
[1742301519741,0.0001,123.5,123.49,33.88604389]
[1742301519941,0.0001,123.5,123.49,40.37234389]
[1742301521432,0.0001,123.5,123.49,14.5841]
[1742301523445,0.0001,123.5,123.49,40.37234389]
[1742301526457,0.0001,123.5,123.49,194.40631589]
[1742301527664,0.0001,123.5,123.49,149.82626157]
[1742301530066,0.0001,123.5,123.49,175.47234389]
[1742301530754,0.0001,123.5,123.49,194.40631589]
[1742301531749,0.0001,123.52,123.5,0.14216157]
[1742301531964,0.0001,123.52,123.5,25.78824389]
[1742301532356,0.0001,123.52,123.51,8.0965]
[1742301532556,0.0001,123.52,123.51,8.23866157]
[1742301532751,0.0001,123.52,123.51,33.74258232]
[1742301532964,0.0001,123.52,123.51,8.23866157]
[1742301533141,0.0001,123.52,123.51,8.0965]
[1742301534372,0.0001,123.52,123.5,8.0971]
[1742301536249,0.0001,123.52,123.5,24.49860273]
[1742301536451,0.0001,123.52,123.51,16.5436643]
[1742301537147,0.03,123.6,123.53,0.14216157]
[1742301537352,0.03,123.6,123.56,16.40150273]
[1742301538466,0.03,123.6,123.57,28.3239]
[1742301538667,16.43150273,123.6,123.57,28.3239]
[1742301538852,16.40150273,123.58,123.57,8.0925]
[1742301539058,16.40150273,123.58,123.56,8.0928]
[1742301539269,25.61128615,123.57,123.56,8.0928]
[1742301540072,25.61128615,123.57,123.54,8.0945]
[1742301540267,25.61128615,123.58,123.54,8.0945]
[1742301540477,25.61128615,123.57,123.54,28.3308]
[1742301542779,7.04,123.59,123.54,28.3308]
[1742301542780,25.61128615,123.58,123.54,28.3308]
[1742301543981,32.65128615,123.59,123.54,53.94208615]
[1742301544279,0.03,123.6,123.56,25.61128615]
[1742301544657,0.03,123.6,123.57,28.3239]
[1742301545785,25.64128615,123.6,123.57,28.3239]
[1742301546584,25.64128615,123.6,123.57,20.2314]
[1742301547357,0.03,123.6,123.57,20.2314]
[1742301547780,25.64128615,123.6,123.57,20.2314]
[1742301548280,0.03,123.6,123.57,20.2314]
[1742301548574,0.03,123.6,123.57,28.3239]
[1742301550598,0.03,123.6,123.57,60.43208615]
[1742301550777,0.03,123.6,123.58,25.61128615]
[1742301551178,0.03,123.6,123.58,25.75344772]
[1742301552393,0.0001,123.6,123.59,25.89560929]
[1742301552601,0.0001,123.61,123.6,18.79181043]
[1742301552792,0.03,123.65,123.61,0.28432314]
[1742301553004,0.03,123.65,123.63,25.61128615]
[1742301553180,25.64128615,123.68,123.63,25.61128615]
[1742301553384,0.03,123.68,123.64,25.61128615]
[1742301554191,0.03,123.68,123.65,0.42648471]
[1742301554394,0.03,123.68,123.66,25.61128615]
[1742301554598,0.03,123.68,123.65,26.03777086]
[1742301554902,0.03,123.68,123.66,8.0866]
[1742301555507,25.64128615,123.68,123.66,8.0866]
[1742301555812,0.03,123.68,123.66,8.0866]
[1742301556592,25.64128615,123.68,123.66,8.0866]
[1742301556808,0.03,123.68,123.66,8.0866]
[1742301557212,0.03,123.68,123.65,28.3047]
[1742301558205,0.03,123.68,123.66,1.6554]
[1742301559315,0.03,123.68,123.67,8.086]
[1742301560492,25.64128615,123.68,123.67,8.086]
[1742301560698,0.03,123.68,123.67,8.086]
[1742301561309,0.03,123.68,123.65,53.91598615]
[1742301561526,0.03,123.68,123.66,44.68741972]
[1742301561812,0.03,123.68,123.66,179.78741972]
[1742301562193,0.03,123.68,123.66,154.17613357]
[1742301563112,0.03,123.68,123.66,170.53131609]
[1742301563314,0.063,123.69,123.66,170.53131609]
[1742301563493,0.063,123.69,123.67,8.086]
[1742301563920,16.41818252,123.69,123.67,8.086]
[1742301564713,0.063,123.69,123.67,8.086]
[1742301565622,0.063,123.69,123.68,0.42648471]
[1742301566036,0.063,123.69,123.68,25.9807051]
[1742301566527,0.0001,123.69,123.68,46.27565396]
[1742301566815,0.0001,123.71,123.68,181.37565396]
[1742301567618,0.0001,123.71,123.69,8.0847]
[1742301568195,0.0001,123.71,123.7,0.42648471]
[1742301568401,0.0001,123.71,123.7,25.9807051]
[1742301569018,0.0001,123.71,123.7,0.42648471]
[1742301569521,0.0001,123.71,123.7,0.14216157]
[1742301569727,0.0001,123.71,123.7,8.51048471]
[1742301570522,0.0001,123.71,123.7,52.71435396]
[1742301571206,0.0001,123.71,123.7,8.51048471]
[1742301572319,0.0001,123.71,123.7,8.084]
[1742301576628,0.0001,123.71,123.69,8.0847]
[1742301578231,25.55432039,123.71,123.69,8.0847]
[1742301578438,25.55422039,123.7,123.69,8.0847]
[1742301578732,25.55422039,123.7,123.67,28.301]
[1742301578925,25.55422039,123.69,123.67,28.301]
[1742301580838,25.55422039,123.69,123.67,20.215]
[1742301581549,25.55422039,123.68,123.66,8.0866]
[1742301581834,25.55422039,123.67,123.66,8.0866]
[1742301582941,25.55422039,123.67,123.65,0.063]
[1742301585233,16.36614866,123.67,123.65,0.063]
[1742301589035,16.36614866,123.66,123.65,0.063]
[1742301589236,88.8707433,123.66,123.65,0.063]
[1742301589440,29.55414866,123.66,123.65,0.063]
[1742301589747,23.40614866,123.66,123.65,0.063]
[1742301594325,16.36614866,123.67,123.65,0.063]
[1742301594716,16.36614866,123.68,123.65,0.063]
[1742301594916,16.36614866,123.67,123.65,0.063]
[1742301596132,16.36614866,123.66,123.65,0.063]
[1742301598538,16.36614866,123.67,123.65,0.063]
[1742301600129,16.36614866,123.66,123.65,0.063]
[1742301601532,81.8307433,123.66,123.65,0.063]
[1742301601765,16.36614866,123.66,123.65,0.063]
[1742301603938,7.04,123.69,123.65,0.063]
[1742301604172,16.36614866,123.67,123.65,0.063]
[1742301604471,20.0,123.69,123.65,0.063]
[1742301604764,36.36614866,123.69,123.65,0.063]
[1742301605337,36.36614866,123.69,123.65,0.48948471]
[1742301605967,36.36614866,123.69,123.65,13.13966919]
[1742301607164,16.36614866,123.68,123.66,8.0866]
[1742301609186,16.36614866,123.68,123.65,28.3679]
[1742301610494,36.36614866,123.69,123.65,28.3679]
[1742301610792,16.36614866,123.68,123.65,28.3679]
[1742301611790,36.36614866,123.69,123.65,28.3679]
[1742301612998,20.0,123.69,123.65,68.8046]
[1742301613294,20.0,123.69,123.65,85.17074866]
[1742301614301,20.0,123.69,123.65,97.82093314]
[1742301614467,16.39614866,123.7,123.68,16.50831023]
[1742301614468,0.03,123.7,123.68,16.50831023]
[1742301614799,0.03,123.7,123.69,16.36614866]
[1742301615264,0.03,123.7,123.68,16.50831023]
[1742301615473,0.03,123.7,123.68,29.15849471]
[1742301615871,0.03,123.7,123.69,8.0847]
[1742301616078,0.03,123.7,123.69,187.847291]
[1742301616079,0.0001,123.7,123.69,187.847291]
[1742301616284,0.0001,123.71,123.7,19.07613357]
[1742301616490,0.0001,123.71,123.7,42.48228223]
[1742301616700,0.0001,123.71,123.7,23.83263337]
[1742301617198,0.0001,123.74,123.72,0.42648471]
[1742301617510,0.0001,123.74,123.72,16.79263337]
[1742301617983,0.0001,123.74,123.73,8.0821]
[1742301618188,7.04,123.78,123.73,65.00091023]
[1742301618391,23.40614866,123.78,123.73,85.20611023]
[1742301618793,7.04,123.78,123.74,16.79263337]
[1742301619112,7.04,123.78,123.74,25.94914611]
[1742301619415,45.5526614,123.8,123.75,27.0496614]
[1742301619709,45.5226614,123.79,123.75,27.0496614]
[1742301619878,20.0,123.79,123.75,27.0496614]
[1742301620288,0.03,123.8,123.77,0.14216157]
[1742301620594,0.03,123.8,123.77,0.42648471]
[1742301620899,25.5526614,123.8,123.76,229.3037614]
[1742301621410,0.03,123.8,123.77,0.42648471]
[1742301621705,0.03,123.8,123.76,229.3037614]
[1742301622114,25.5526614,123.8,123.76,203.7811]
[1742301622405,0.03,123.79,123.76,163.3804]
[1742301624997,0.03,123.79,123.76,53.8030614]
[1742301625729,25.5226614,123.78,123.76,28.2804]
[1742301625887,25.5526614,123.79,123.76,28.2804]
[1742301626088,0.03,123.79,123.77,25.5226614]
[1742301626722,0.03,123.79,123.78,8.0788]
[1742301626911,0.03,123.8,123.79,1.69546157]
[1742301627092,0.0001,123.81,123.8,44.17231026]
[1742301627296,0.0001,123.81,123.8,179.27231026]
[1742301628897,0.0001,123.81,123.8,187.34981026]
[1742301629708,0.0001,123.81,123.8,143.60398471]
[1742301629911,0.0001,123.81,123.8,143.1775]
[1742301631320,0.0001,123.81,123.8,8.0775]
[1742301631616,25.5227614,123.81,123.8,8.0775]
[1742301633299,25.5227614,123.81,123.76,94.2032614]
[1742301634518,25.5227614,123.81,123.8,0.063]
[1742301635622,0.0001,123.81,123.8,0.063]
[1742301640527,25.5227614,123.81,123.8,0.063]
[1742301641227,0.0001,123.81,123.8,0.063]
[1742301643949,0.0001,123.81,123.8,25.72782297]
[1742301644246,0.0001,123.81,123.8,0.48948471]
[1742301644818,0.03,123.83,123.8,0.48948471]
[1742301645039,0.03,123.83,123.81,8.0768]
[1742301646361,16.35022736,123.83,123.81,8.0768]
[1742301647165,0.03,123.83,123.8,20.2559]
[1742301649055,25.53263366,123.83,123.8,20.2559]
[1742301649366,25.50263366,123.82,123.8,20.2559]
[1742301649966,45.53263366,123.83,123.8,20.2559]
[1742301652449,0.03,123.83,123.81,25.92911837]
[1742301652674,0.03,123.83,123.81,0.42648471]
[1742301653268,0.03,123.83,123.82,8.0762]
[1742301655827,0.03,123.83,123.81,8.0768]
[1742301658860,45.53263366,123.83,123.81,8.0768]
[1742301660544,25.50263366,123.82,123.81,8.0768]
[1742301661138,32.52263366,123.82,123.8,8.1401]
[1742301661344,25.50263366,123.81,123.8,0.063]
[1742301663672,25.7869568,123.81,123.8,0.063]
[1742301663966,44.43660566,123.81,123.8,0.063]
[1742301664469,52.51340566,123.81,123.8,0.063]
[1742301666365,20.0,123.78,123.74,8.0814]
[1742301666568,25.50263366,123.75,123.73,8.0821]
[1742301666747,25.50263366,123.74,123.73,8.0821]
[1742301667148,16.34596814,123.74,123.73,8.0821]
[1742301668669,16.34596814,123.74,123.72,28.2894]
[1742301668849,36.34596814,123.75,123.72,28.2894]
[1742301670150,16.34596814,123.73,123.72,8.0827]
[1742301670651,16.34596814,123.73,123.71,20.75011357]
[1742301670857,16.34596814,123.72,123.71,20.75011357]
[1742301671675,23.36596814,123.73,123.71,20.75011357]
[1742301672167,16.34596814,123.72,123.71,20.75011357]
[1742301672377,16.34596814,123.72,123.71,8.0832]
[1742301672747,23.36596814,123.73,123.7,28.2941]
[1742301672954,7.02,123.73,123.7,28.2941]
[1742301673668,7.02,123.73,123.7,53.83462172]
[1742301675373,25.54052172,123.75,123.7,94.25492172]
[1742301675592,25.54052172,123.74,123.7,94.25492172]
[1742301676583,25.54052172,123.74,123.7,28.2941]
[1742301678390,20.0,123.74,123.7,94.25492172]
[1742301678691,20.0,123.74,123.71,25.54052172]
[1742301679495,20.0,123.74,123.72,8.0827]
[1742301679885,25.54052172,123.75,123.72,28.2896]
[1742301681093,45.54052172,123.74,123.72,8.0827]
[1742301681278,25.54052172,123.73,123.72,8.0827]
[1742301681800,25.54052172,123.73,123.7,28.2935]
[1742301681985,25.54052172,123.72,123.7,28.2935]
[1742301682493,8.0802,123.76,123.7,8.084]
[1742301682494,25.54052172,123.71,123.7,8.084]
[1742301682796,25.54052172,123.71,123.7,8.147]
[1742301683798,45.54052172,123.72,123.7,0.063]
[1742301686300,25.54052172,123.72,123.7,0.063]
[1742301687004,32.56052172,123.73,123.7,0.063]
[1742301687201,7.02,123.73,123.7,0.063]
[1742301687396,7.02,123.73,123.7,25.60352172]
[1742301687599,25.54052172,123.75,123.7,25.60352172]
[1742301687796,7.02,123.76,123.7,25.60352172]
[1742301688001,25.54052172,123.76,123.71,25.54052172]
[1742301688999,25.54052172,123.76,123.72,28.2896]
[1742301691292,25.54052172,123.75,123.72,28.2896]
[1742301692413,25.54052172,123.76,123.72,28.2896]
[1742301692791,25.54052172,123.75,123.72,28.2896]
[1742301693192,16.34470832,123.75,123.7,44.70180832]
[1742301695913,16.34470832,123.75,123.7,85.12210832]
[1742301697215,23.36470832,123.76,123.7,85.12210832]
[1742301698622,23.36470832,123.77,123.72,16.34470832]
[1742301700124,16.34470832,123.76,123.71,24.06410832]
[1742301700323,16.34470832,123.75,123.72,28.2896]
[1742301701721,16.34470832,123.74,123.72,28.2896]
[1742301703124,16.34470832,123.76,123.72,28.2896]
[1742301706244,16.34470832,123.76,123.72,28.3526]
[1742301710438,7.02,123.77,123.72,85.11110832]
[1742301710615,7.02,123.77,123.72,97.77802189]
[1742301710821,23.36470832,123.77,123.72,97.77802189]
[1742301711642,23.36470832,123.77,123.74,28.285]
[1742301711940,16.34470832,123.77,123.74,28.285]
[1742301712627,16.37470832,123.8,123.75,16.34470832]
[1742301712825,23.39470832,123.8,123.75,16.34470832]
[1742301713136,0.03,123.8,123.76,16.34470832]
[1742301713940,0.03,123.8,123.77,28.2782]
[1742301715542,16.37470832,123.8,123.77,28.2782]
[1742301715937,16.34470832,123.79,123.77,28.2782]
[1742301716642,16.37470832,123.8,123.77,40.94511357]
[1742301717746,16.37470832,123.8,123.77,28.2782]
[1742301718547,16.37470832,123.8,123.77,40.94511357]
[1742301719648,16.37470832,123.8,123.77,28.2782]
[1742301722170,0.03,123.8,123.77,44.62290832]
[1742301722343,0.03,123.8,123.77,28.2782]
[1742301723260,0.03,123.8,123.77,40.94511357]
[1742301723462,16.37470832,123.8,123.77,40.94511357]
[1742301726338,16.37470832,123.8,123.77,28.2782]
[1742301728252,16.37470832,123.8,123.77,40.94511357]
[1742301729262,16.37470832,123.8,123.77,28.2782]
[1742301730566,16.34470832,123.79,123.77,28.2782]
[1742301732166,16.37470832,123.8,123.77,28.2782]
[1742301732552,16.37470832,123.8,123.77,20.1987]
[1742301733573,16.37470832,123.8,123.77,20.2617]
[1742301734260,0.03,123.8,123.77,20.2617]
[1742301734858,0.03,123.8,123.77,28.3412]
[1742301735067,0.03,123.8,123.77,44.68590832]
[1742301735447,0.03,123.8,123.78,16.34470832]
[1742301736175,0.03,123.8,123.77,28.3412]
[1742301736350,16.37470832,123.8,123.77,28.3412]
[1742301736551,16.34470832,123.79,123.77,28.3412]
[1742301737058,16.34470832,123.79,123.77,20.2617]
[1742301737975,16.37470832,123.8,123.77,20.2617]
[1742301743279,16.34470832,123.79,123.77,20.2617]
[1742301743471,36.34470832,123.78,123.77,0.063]
[1742301749054,19.07613357,123.77,123.73,20.74901357]
[1742301749259,36.34470832,123.74,123.73,12.66691357]
[1742301751303,36.34470832,123.74,123.72,8.1455]
[1742301751597,36.34470832,123.73,123.72,8.1455]
[1742301752605,36.34470832,123.73,123.72,0.063]
[1742301752894,128.88177517,123.73,123.72,0.063]
[1742301753197,36.34470832,123.73,123.72,0.063]
[1742301754378,16.34470832,123.73,123.72,0.063]
[1742301754686,36.34470832,123.73,123.72,0.063]
[1742301757901,20.0,123.73,123.72,0.063]
[1742301758702,16.34470832,123.75,123.72,0.063]
[1742301758896,20.0,123.74,123.73,28.2873]
[1742301761087,36.34470832,123.74,123.73,8.0821]
[1742301763292,36.34470832,123.74,123.72,0.063]
[1742301763493,16.34470832,123.73,123.72,0.063]
[1742301766114,20.0,123.74,123.72,0.063]
[1742301766115,36.34470832,123.74,123.72,0.063]
[1742301768726,0.03,123.77,123.73,16.34470832]
[1742301768907,0.03,123.77,123.74,17.94560832]
[1742301770626,0.03,123.77,123.75,8.0808]
[1742301770827,230.12813167,123.79,123.75,8.0808]
[1742301771621,230.12813167,123.79,123.75,28.2828]
[1742301772416,16.34470832,123.78,123.75,28.2828]
[1742301774332,16.34470832,123.76,123.75,28.2828]
[1742301775507,16.34470832,123.76,123.72,28.3526]
[1742301775508,23.36470832,123.76,123.72,28.3526]
[1742301775834,16.34470832,123.74,123.72,28.3526]
[1742301777425,16.34470832,123.74,123.72,20.2699]
[1742301779533,16.34470832,123.75,123.72,20.2699]
[1742301779724,23.36470832,123.76,123.72,20.2699]
[1742301780121,7.02,123.76,123.72,20.2699]
[1742301780309,16.34470832,123.75,123.72,20.2699]
[1742301781629,16.34470832,123.75,123.72,28.3526]
[1742301782031,7.02,123.76,123.72,68.7664]
[1742301782232,7.02,123.76,123.73,16.34470832]
[1742301782412,0.0001,123.76,123.73,16.34470832]
[1742301782616,16.34470832,123.78,123.74,16.34470832]
[1742301782817,230.12813167,123.79,123.74,16.34470832]
[1742301783612,213.78342335,123.79,123.75,46.26760832]
[1742301783815,0.03,123.8,123.76,16.77119303]
[1742301784016,0.03,123.8,123.77,16.34470832]
[1742301785134,0.03,123.8,123.78,8.0788]
[1742301785526,0.0001,123.8,123.78,8.0788]
[1742301785726,0.0001,123.8,123.78,24.42350832]
[1742301785923,0.0001,123.8,123.79,16.34470832]
[1742301786130,0.0001,123.82,123.79,16.34470832]
[1742301786432,0.0001,123.83,123.8,2.03608471]
[1742301787118,0.0001,123.83,123.81,8.0768]
[1742301788351,16.34480832,123.83,123.81,8.0768]
[1742301796260,0.0001,123.83,123.81,8.0768]
[1742301798851,16.34480832,123.83,123.81,8.0768]
[1742301799052,0.0001,123.83,123.81,8.0768]
[1742301803461,0.0001,123.83,123.81,24.42150832]
[1742301804063,0.0001,123.83,123.81,24.48450832]
[1742301804565,0.0001,123.83,123.81,8.1398]
[1742301806154,0.0001,123.83,123.81,24.48450832]
[1742301807459,0.0001,123.84,123.82,16.34470832]
[1742301807974,0.0001,123.84,123.83,16.34470832]
[1742301809369,0.0001,123.84,123.83,24.84669303]
[1742301809769,0.0001,123.84,123.83,26.45679303]
[1742301810678,0.0001,123.84,123.83,26.17246989]
[1742301810852,0.0001,123.84,123.83,8.50198471]
[1742301811056,0.0001,123.84,123.83,8.0755]
[1742301812871,0.0001,123.84,123.83,24.84669303]
[1742301813957,0.0001,123.84,123.83,43.49634189]
[1742301815783,0.03,123.87,123.83,63.68524189]
[1742301815986,0.03,123.87,123.84,16.34470832]
[1742301816290,0.0001,123.87,123.85,16.34470832]
[1742301817377,0.0001,123.87,123.86,8.0736]
[1742301819458,0.0001,123.87,123.84,28.2612]
[1742301819981,0.0001,123.87,123.84,44.60590832]